fUSD/lending_fUSD_20240617
["ID","MTS","AMOUNT","RATE_DAILY","PERIOD"]
[329774448,1718659882796,-19313.21,0.00023013,3]
[329774449,1718659882806,-1064.94,0.00023013,3]
[329774450,1718659882816,-1960.3,0.00023013,3]
[329774451,1718659882826,-3317.44,0.00023013,3]
[329774452,1718659882835,-1280.13,0.00023013,3]
[329774453,1718659882844,-565.32212913,0.00023013,3]
[329774454,1718659882855,-500.0,0.00023013,3]
[329774455,1718659882865,-2173.61,0.00023013,3]
[329774456,1718659882875,-1852.25,0.00023013,3]
[329774457,1718659882886,-901.0,0.00023013,3]
[329774458,1718659882899,-3318.61,0.00023013,3]
[329774459,1718659882908,-1928.14,0.00023013,3]
[329774460,1718659882917,-2351.64,0.00023013,3]
[329774461,1718659882926,-5477.08,0.00023013,3]
[329774462,1718659882935,-1454.77,0.00023013,3]
[329774463,1718659882945,-500.0,0.00023013,3]
[329774464,1718659882954,-500.0,0.00023013,3]
[329774465,1718659882963,-784.13,0.00023013,3]
[329774466,1718659882974,-962.26,0.00023013,3]
[329774467,1718659882983,-1417.75,0.00023013,3]
[329774468,1718659882993,-881.72,0.00023013,3]
[329774469,1718659883003,-744.96,0.00023013,3]
[329774470,1718659883013,-500.0,0.00023013,3]
[329774471,1718659883023,-4177.43,0.00023013,3]
[329774472,1718659883032,-500.0,0.00023013,3]
[329774473,1718659883041,-2207.13,0.00023013,3]
[329774474,1718659883051,-1222.88,0.00023013,3]
[329774475,1718659883061,-500.0,0.00023013,3]
[329774476,1718659883071,-777.35,0.00023013,3]
[329774477,1718659883081,-2532.42,0.00023013,3]
[329774478,1718659883090,-3307.85,0.00023013,3]
[329774479,1718659883100,-500.0,0.00023013,3]
[329774480,1718659883109,-6782.82,0.00023013,3]
[329774481,1718659883119,-1291.64,0.00023013,3]
[329774482,1718659883128,-500.0,0.00023013,3]
[329774483,1718659883138,-500.0,0.00023013,3]
[329774484,1718659883150,-1855.2,0.00023013,3]
[329774485,1718659883159,-4879.58,0.00023013,3]
[329774486,1718659883168,-9243.14,0.00023013,3]
[329774487,1718659883177,-3726.86,0.00023013,3]
[329774488,1718659883187,-5126.78,0.00023013,3]
[329774489,1718659883196,-549.1,0.00023013,3]
[329774490,1718659883206,-2173.02,0.00023013,3]
[329774491,1718659883215,-975.62,0.00023013,3]
[329774492,1718659883225,-800.1,0.00023013,3]
[329774493,1718659883234,-1993.33,0.00023013,3]
[329774494,1718659883243,-500.0,0.00023013,3]
[329774495,1718659883253,-669.92,0.00023013,3]
[329774496,1718659883263,-500.0,0.00023013,3]
[329774497,1718659883413,-6536.15,0.00023013,3]
[329774498,1718659883424,-500.0,0.00023013,3]
[329774499,1718659883434,-1330.07,0.00023013,3]
[329774500,1718659883444,-500.0,0.00023013,3]
[329774501,1718659883454,-521.99,0.00023013,3]
[329774502,1718659883464,-500.0,0.00023013,3]
[329774503,1718659883474,-500.0,0.00023013,3]
[329774504,1718659883484,-9395.68,0.00023013,3]
[329774505,1718659883494,-4782.18,0.00023013,3]
[329774506,1718659883504,-3782.97,0.00023013,3]
[329774507,1718659883513,-2242.43,0.00023013,3]
[329774508,1718659883523,-6715.49,0.00023013,3]
[329774509,1718659883533,-1990.64,0.00023013,3]
[329774510,1718659883542,-1379.42092411,0.00023013,3]
[329774511,1718659884151,-513.09907589,0.00023013,3]
[329774512,1718659884170,-1077.39,0.00023013,3]
[329774513,1718659884188,-629.17,0.00023013,3]
[329774514,1718659884208,-500.0,0.00023013,3]
[329774515,1718659884223,-45.70324022,0.00023013,3]
[329774516,1718659884286,-669.13794876,0.00022465,3]
[329774517,1718659884308,-1011.68205124,0.00022465,3]
[329774518,1718659884326,-815.96675978,0.00023013,3]
[329774519,1718659884346,-2638.13,0.00023013,3]
[329774520,1718659884361,-713.04,0.00023013,3]
[329774521,1718659884377,-11017.28,0.00023013,3]
[329774522,1718659884394,-500.0,0.00023013,3]
[329774523,1718659884410,-10005.75,0.00023013,3]
[329774524,1718659884426,-929.79,0.00023013,3]
[329774525,1718659884442,-500.0,0.00023013,3]
[329774526,1718659884457,-13494.78,0.00023013,3]
[329774527,1718659884474,-201.87526528,0.00023013,3]
[329774528,1718659884490,-3071.67,0.00023013,3]
[329774529,1718659884507,-500.0,0.00023013,3]
[329774530,1718659884523,-1697.5,0.00023013,3]
[329774531,1718659884539,-783.46,0.00023013,3]
[329774532,1718659884555,-500.0,0.00023013,3]
[329774533,1718659884572,-7205.62,0.00023013,3]
[329774534,1718659884589,-6303.84,0.00023013,3]
[329774535,1718659884604,-1619.54,0.00023013,3]
[329774536,1718659884622,-1304.23,0.00023013,3]
[329774537,1718659884637,-3080.0,0.00023013,3]
[329774538,1718659884655,-500.0,0.00023013,3]
[329774539,1718659884673,-1608.47,0.00023013,3]
[329774540,1718659884689,-3390.6,0.00023013,3]
[329774541,1718659884705,-1365.25,0.00023013,3]
[329774542,1718659884720,-913.84,0.00023013,3]
[329774543,1718659884736,-1318.21,0.00023013,3]
[329774544,1718659884751,-575.76,0.00023013,3]
[329774545,1718659884767,-500.0,0.00023013,2]
[329774546,1718659884782,-500.0,0.00023013,3]
[329774547,1718659884797,-500.0,0.00023013,3]
[329774548,1718659884812,-1114.95699673,0.00023068,5]
[329774549,1718659884827,-1126.32,0.000231,2]
[329774550,1718659884842,-205.63983,0.000231,2]
[329774551,1718659884857,-1114.95699673,0.00023178,5]
[329774552,1718659884872,-8339.87822522,0.00023212,2]
[329774553,1718659886134,-500.0,0.00021917,2]
[329774554,1718659886144,-198.23565078,0.00021917,2]
[329774555,1718659941120,489.04,0.00021589,30]
[329774558,1718660468864,462.87,0.00021589,30]
[329774574,1718661032128,-160.15578634,0.00013898,2]
[329774576,1718661032138,-245.67646761,0.0001399,2]
[329774578,1718661032147,-160.71985942,0.00013998,2]
[329774581,1718661032159,-39.13841377,0.00013998,2]
[329774582,1718661032170,-377.88213118,0.00013998,2]
[329774583,1718661032179,-150.0,0.00013999,2]
[329774584,1718661032189,-428.85491381,0.00014,2]
[329774585,1718661035170,-8439.89297998,0.00014,2]
[329774586,1718661035182,-453.99681642,0.00014,2]
[329774587,1718661035193,-26415.31571769,0.00014,2]
[329774588,1718661035204,-349.0,0.00014,2]
[329774589,1718661035215,-1577.50775,0.00014,2]
[329774590,1718661035226,-4453.55193141,0.00014,2]
[329774591,1718661035419,-4455.70350292,0.00014,2]
[329774592,1718661035431,-740.58240107,0.00014,2]
[329774593,1718661035441,-2317.46216656,0.00014,2]
[329774594,1718661035452,-781.72744129,0.00014,2]
[329774595,1718661035464,-3427.9205935,0.00014,2]
[329774596,1718661035475,-336.22,0.00014,2]
[329774597,1718661035486,-2192.68833918,0.00014,2]
[329774598,1718661035497,-1157.49476173,0.00014,2]
[329774599,1718661035508,-3361.8399999,0.00014,2]
[329774600,1718661035519,-15360.6313601,0.00014,2]
[329774612,1718661038243,424.29,0.00021589,30]
[329774613,1718661038330,-688.5,0.00014,2]
[329774614,1718661038341,-714.662132,0.00014,2]
[329774615,1718661038352,-41371.6985257,0.00014,2]
[329774616,1718661038364,-6886.76495997,0.00014,2]
[329774617,1718661038375,-263.8,0.00014,2]
[329774618,1718661038387,-90147.21860083,0.00014,2]
[329774619,1718661038398,-4771.74999926,0.00014,2]
[329774620,1718661038409,-8927.05000028,0.00014,2]
[329774621,1718661038422,-13725.33117693,0.00014,2]
[329774622,1718661038434,-466.01230619,0.00014,2]
[329774623,1718661038445,-13283.0528246,0.00014,2]
[329774624,1718661038457,-585.41820824,0.00014,2]
[329774625,1718661038575,-739.07907632,0.00014,2]
[329774627,1718661038587,-332.5,0.00014,2]
[329774639,1718661041569,-3438.6469238,0.00014,2]
[329774640,1718661041580,-20470.47145279,0.00014,2]
[329774641,1718661041591,-16093.011465,0.00014,2]
[329774642,1718661041632,-568.13080662,0.00014,2]
[329774643,1718661041643,-1408.02620954,0.00014,2]
[329774644,1718661041654,-6723.4,0.00014,2]
[329774645,1718661041665,-345.91747748,0.00014,2]
[329774646,1718661041677,-278.90148228,0.00014,2]
[329774647,1718661041688,-850.24946448,0.00014,2]
[329774648,1718661041699,-361.75736244,0.00014,2]
[329774649,1718661041710,-380.43487415,0.00014,2]
[329774650,1718661042598,-1253.83278851,0.00014,2]
[329774662,1718661043791,-1048.18283634,0.00014,2]
[329774663,1718661043803,-395.6257208,0.00014,2]
[329774664,1718661043815,-4193.688803,0.00014,2]
[329774689,1718661046876,-1682.55984517,0.00014,2]
[329774690,1718661046888,-1338.106914,0.00014,2]
[329774691,1718661046900,-414273.86906369,0.00014,2]
[329774703,1718661384359,-172.18062891,0.00013898,2]
[329774704,1718661384386,-199827.81937109,0.00013998,2]
[329774705,1718661439241,-368.79556322,0.000139,2]
[329774706,1718661439269,-368.02980478,0.00013996,2]
[329774707,1718661439295,-300.0,0.00013997,2]
[329774708,1718661439323,-48963.174632,0.00013998,2]
[329774709,1718661462308,-303.305,0.00013298,2]
[329774710,1718661462335,-9696.695,0.00013998,2]
[329774711,1718661474955,-10000.0,0.00013998,2]
[329774712,1718661478402,-10000.0,0.00013998,2]
[329774713,1718661481511,-10000.0,0.00013998,2]
[329774715,1718661728421,388.93,0.00021589,30]
[329774717,1718661935964,2924.61081899,0.00012,2]
[329774718,1718661935990,12075.38918101,0.00012,2]
[329774726,1718662203337,150.0,0.00012,2]
[329774731,1718662232496,-172.18062891,0.000139,2]
[329774732,1718662232509,-9338.71795209,0.00013998,2]
[329774733,1718662232523,-19915.13987259,0.00013998,2]
[329774734,1718662232538,-1297.15673013,0.00013998,2]
[329774735,1718662232556,-2708.4,0.00013998,2]
[329774736,1718662232570,-2437.14912999,0.00013998,2]
[329774737,1718662232584,-1782.00032808,0.00013998,2]
[329774738,1718662232599,-6659.40709401,0.00013998,2]
[329774739,1718662232614,-36779.02295496,0.00013998,2]
[329774740,1718662232628,-1312.74337799,0.00013998,2]
[329774741,1718662232642,-11735.0,0.00013998,2]
[329774742,1718662232656,-621.77146932,0.00013998,2]
[329774743,1718662232670,-883.97785601,0.00013998,2]
[329774744,1718662232685,-450.25,0.00013998,2]
[329774745,1718662232700,-3252.16784281,0.00013998,2]
[329774748,1718662232714,-2253.71037969,0.00013998,2]
[329774750,1718662232728,-6336.6456329,0.00013998,2]
[329774752,1718662232742,-542.7579083,0.00013998,2]
[329774754,1718662232816,-2015.29501095,0.00013998,2]
[329774755,1718662232830,-3920.58701703,0.00013998,2]
[329774756,1718662232844,-4205.98716292,0.00013998,2]
[329774757,1718662232858,-2131.10060352,0.00013998,2]
[329774758,1718662232872,-538.88,0.00013998,2]
[329774759,1718662232888,-866.7628267,0.00013998,2]
[329774760,1718662232903,-778.63384695,0.00013998,2]
[329774761,1718662232917,-747.562701,0.00013998,2]
[329774762,1718662232931,-5018.83705891,0.00013998,2]
[329774763,1718662232945,-673.43302,0.00013998,2]
[329774764,1718662232960,-4125.0000005,0.00013998,2]
[329774765,1718662232974,-3406.33436546,0.00013998,2]
[329774766,1718662238412,-500.0,0.00013998,2]
[329774767,1718662238425,-1941.56591577,0.00013998,2]
[329774768,1718662238436,-437.7186954,0.00013998,2]
[329774769,1718662238449,-1375.56936951,0.00013998,2]
[329774770,1718662238461,-8230.48366356,0.00013998,2]
[329774771,1718662238473,-3701.80301284,0.00013998,2]
[329774772,1718662238482,-668.67887058,0.00013998,2]
[329774773,1718662238492,-2172.25509687,0.00013998,2]
[329774774,1718662238502,-289.7401589,0.00013999,2]
[329774775,1718662238512,-3198.15287891,0.00013999,2]
[329774776,1718662238521,-1254.3721,0.00013999,2]
[329774777,1718662238531,-537.72037607,0.00013999,2]
[329774778,1718662238541,-209.56877311,0.00013999,2]
[329774779,1718662238551,-616.28742313,0.00013999,2]
[329774780,1718662238562,-207.0,0.00013999,2]
[329774781,1718662238571,-9425.50707912,0.00014,2]
[329774782,1718662238583,-344.85876463,0.00014,2]
[329774783,1718662238595,-1662.29927355,0.00014,2]
[329774784,1718662238607,-1288.14338783,0.00014,2]
[329774785,1718662238650,-9154.47080123,0.00014,2]
[329774786,1718662238661,-5114.17852271,0.00014,2]
[329774787,1718662238672,-1703.41591,0.00014,2]
[329774788,1718662238684,-4005.71897129,0.00014,2]
[329774789,1718662238696,-1078.0799953,0.00014,2]
[329774790,1718662238707,-1095.36771121,0.00014,2]
[329774791,1718662238718,-1840.7599115,0.00014,2]
[329774792,1718662238730,-14270.66182843,0.00014,2]
[329774793,1718662238749,-1847.439928,0.00014,2]
[329774794,1718662238767,-7020.34704115,0.00014,2]
[329774795,1718662238797,-30961.14939622,0.00014,2]
[329774797,1718662238809,-25251.74613698,0.00014,2]
[329774799,1718662238823,-417.93093948,0.00014,2]
[329774801,1718662238834,-1216.49734255,0.00014,2]
[329774803,1718662238847,-308.66866659,0.00014,2]
[329774804,1718662238858,-675.40068488,0.00014,2]
[329774805,1718662238870,-919.15463358,0.00014,2]
[329774806,1718662238882,-804.4421225,0.00014,2]
[329774807,1718662238894,-4343.464663,0.00014,2]
[329774808,1718662238906,-670.31329616,0.00014,2]
[329774809,1718662241481,-177.27972599,0.000139,2]
[329774810,1718662241491,-146322.72027401,0.00014,2]
[329774811,1718662241502,-261.92768174,0.00014,2]
[329774812,1718662241513,-6795.41471333,0.00014,2]
[329774813,1718662241524,-398441.98932782,0.00014,2]
[329774814,1718662241623,-2095.4278427,0.00014,2]
[329774815,1718662241634,-1009.71667059,0.00014,2]
[329774816,1718662241645,-343.76914795,0.00014,2]
[329774817,1718662242612,-1048.0,0.00014,2]
[329774818,1718662242625,-340.0090999,0.00014,2]
[329774819,1718662242636,-953.445,0.00014,2]
[329774820,1718662242647,-1899.99999999,0.00014,2]
[329774821,1718662242658,-568.22236691,0.00014,2]
[329774914,1718662243844,-3014.06078145,0.00014,2]
[329774915,1718662243856,-2969.575707,0.00014,2]
[329774916,1718662243868,-3097.70689365,0.00014,2]
[329774917,1718662243879,-1268.90810758,0.00014,2]
[329774918,1718662243891,-3977.57470231,0.00014,2]
[329774919,1718662244183,-10394.25069797,0.00014,2]
[329775061,1718662246767,-264.208,0.00014,2]
[329775062,1718662246779,-17304.56,0.00014,2]
[329775063,1718662246791,-700.0,0.00014,2]
[329775064,1718662246802,-949.65,0.00014,2]
[329775065,1718662246815,-459.4508895,0.00014,2]
[329775066,1718662246826,-4045.83117806,0.00014,2]
[329775067,1718662247021,-3272.35512418,0.00014,2]
[329775068,1718662247147,-12772.34607047,0.00014,2]
[329775069,1718662247159,-720.17874408,0.00014,2]
[329775070,1718662247170,-702.70595647,0.00014,2]
[329775083,1718662247309,-6330.0,0.00014,2]
[329775561,1718662252327,356.51,0.00021589,30]
[329776427,1718662835951,326.8,0.00021589,30]
[329776439,1718663432598,-1491.3733,0.000139,2]
[329776440,1718663432607,-345.33611979,0.00013998,2]
[329776441,1718663432617,-751.36855382,0.00013999,2]
[329776442,1718663432627,-300.0,0.00013999,2]
[329776443,1718663432636,-150.0,0.00013999,2]
[329776445,1718663432646,-945.86205652,0.00014,2]
[329776449,1718663432865,-1233.01356435,0.00014,2]
[329776450,1718663432877,-82002.23441811,0.00014,2]
[329776451,1718663432887,-313.3855,0.00014,2]
[329776452,1718663432897,-30000.0,0.00015,2]
[329776453,1718663432907,-210.0,0.00015399,2]
[329776454,1718663432917,-358.37,0.00016598,2]
[329776455,1718663432927,-239.0,0.00016939,2]
[329776456,1718663432936,-776.95,0.0001799,3]
[329776457,1718663432946,-30000.0,0.00018,2]
[329776458,1718663432955,-1833.1778,0.00018225,2]
[329776459,1718663432965,-200.0,0.00018337,2]
[329776460,1718663432974,-203.07,0.00018343,2]
[329776461,1718663432984,-3036.65,0.00018357,2]
[329776462,1718663432993,-400.0,0.00018381,2]
[329776463,1718663433003,-566.64,0.0001845,2]
[329776464,1718663433013,-761.52,0.0001846,2]
[329776465,1718663433022,-250.0,0.00018503,2]
[329776466,1718663433031,-169.72,0.00018506,2]
[329776467,1718663433041,-412.04,0.00018511,2]
[329776468,1718663433051,-192.02,0.00018527,2]
[329776469,1718663433060,-719.12,0.0001854,2]
[329776470,1718663433069,-1000.0,0.00018547,2]
[329776471,1718663433079,-21318.72,0.00018547,2]
[329776472,1718663433088,-1654.93,0.00018548,2]
[329776473,1718663433097,-727.83,0.00018549,2]
[329776474,1718663433107,-250.0,0.00018575,2]
[329776475,1718663433116,-178.08,0.00018602,2]
[329776476,1718663433126,-170.57,0.00018709,2]
[329776478,1718663433135,-337.71,0.00018809,2]
[329776480,1718663433144,-358.37,0.00018862,2]
[329776482,1718663433154,-170.57,0.00018904,2]
[329776485,1718663433165,-313.3855,0.00019,2]
[329776486,1718663433174,-170.57,0.00019099,2]
[329776488,1718663433184,-170.57,0.00019294,2]
[329776489,1718663433193,-170.57,0.00019489,2]
[329776490,1718663433203,-170.57,0.00019684,2]
[329776492,1718663433212,-1687.0,0.000198,2]
[329776493,1718663433222,-150.0,0.00020082,2]
[329776494,1718663433231,-226.83513534,0.000201,2]
[329776495,1718663433241,-608.0,0.000202,2]
[329776496,1718663433251,-500.0,0.000205,2]
[329776497,1718663433260,-580.1822,0.000205,2]
[329776498,1718663433270,-11735.0,0.000206,5]
[329776499,1718663433279,-400.0,0.00020678,2]
[329776500,1718663433288,-1000.0,0.00020866,2]
[329776501,1718663433298,-358.37,0.00021126,2]
[329776502,1718663433307,-337.71,0.0002116,2]
[329776503,1718663433316,-851.39,0.0002126,2]
[329776504,1718663433325,-418.01,0.0002126,2]
[329776505,1718663433335,-418.01,0.0002126,2]
[329776506,1718663433344,-852.03,0.0002126,2]
[329776507,1718663433354,-852.03,0.0002126,2]
[329776508,1718663433364,-412.39,0.0002126,2]
[329776509,1718663433374,-781.47,0.0002126,2]
[329776510,1718663433384,-1654.93,0.00021287,2]
[329776511,1718663433395,-193.26247617,0.00021322,2]
[329776512,1718663433408,-172.18062891,0.00021489,2]
[329776513,1718663433418,-447.0,0.00021523,2]
[329776514,1718663433428,-1067.0,0.00021523,2]
[329776515,1718663433438,-1830.0,0.00021523,2]
[329776516,1718663433451,-770.965,0.00021523,2]
[329776517,1718663433461,-5162.0,0.00021523,2]
[329776518,1718663433471,-1659.0,0.00021523,2]
[329776519,1718663433480,-1196.0,0.00021523,2]
[329776520,1718663433490,-410.83715221,0.00021589,2]
[329776521,1718663433500,-19786.35336253,0.00021589,2]
[329776522,1718663433510,-358.20152403,0.00021589,2]
[329776523,1718663433520,-192.12214025,0.00021589,2]
[329776524,1718663433530,-2215.69772044,0.00021589,2]
[329776525,1718663433540,-173198.80923258,0.00021589,2]
[329776526,1718663433550,-2000.0,0.00021589,2]
[329776527,1718663433560,-200.0,0.00021589,2]
[329776528,1718663433570,-200.0,0.00021589,2]
[329776529,1718663433579,-187.911522,0.00021644,2]
[329776530,1718663433589,-2000.0,0.00021805,2]
[329776531,1718663433598,-200.0,0.00021805,2]
[329776532,1718663433608,-200.0,0.00021805,2]
[329776533,1718663433618,-10000.0,0.00021817,2]
[329776534,1718663433628,-7500.0,0.00021817,2]
[329776535,1718663433638,-441.5783,0.00021817,2]
[329776536,1718663433647,-5009.34054412,0.00021817,2]
[329776537,1718663433661,-630.5367656,0.00021817,2]
[329776538,1718663433670,-220.0,0.00021897,15]
[329776539,1718663433680,-216.18844803,0.00021906,2]
[329776540,1718663433690,-150.5,0.00021907,15]
[329776541,1718663433700,-353712.07679203,0.00021916,2]
[329776542,1718663433710,-706.0,0.00021917,2]
[329776543,1718663433719,-1416.31042827,0.00021917,2]
[329776544,1718663433729,-284.4575233,0.00021917,2]
[329776545,1718663433738,-500.0,0.00021917,2]
[329776546,1718663433748,-500.0,0.00021917,2]
[329776547,1718663433762,-500.0,0.00021917,2]
[329776548,1718663433772,-500.0,0.00021917,2]
[329776549,1718663433781,-500.0,0.00021917,2]
[329776550,1718663433790,-500.0,0.00021917,2]
[329776551,1718663433801,-500.0,0.00021917,2]
[329776552,1718663433811,-500.0,0.00021917,2]
[329776553,1718663433821,-500.0,0.00021917,2]
[329776554,1718663433832,-547.64,0.00021917,2]
[329776555,1718663433842,-500.0,0.00021917,2]
[329776556,1718663433852,-500.0,0.00021917,2]
[329776557,1718663433861,-500.0,0.00021917,2]
[329776558,1718663433871,-500.0,0.00021917,2]
[329776559,1718663433880,-500.0,0.00021917,2]
[329776560,1718663433890,-500.0,0.00021917,2]
[329776561,1718663433902,-500.0,0.00021917,2]
[329776562,1718663433911,-161.26897551,0.00021917,2]
[329776563,1718663433920,-500.0,0.00021917,2]
[329776564,1718663433928,-500.0,0.00021917,2]
[329776565,1718663433937,-500.0,0.00021917,2]
[329776566,1718663433947,-500.0,0.00021917,2]
[329776567,1718663433956,-500.0,0.00021917,2]
[329776568,1718663433966,-500.0,0.00021917,2]
[329776569,1718663433976,-500.0,0.00021917,2]
[329776570,1718663433985,-500.0,0.00021917,2]
[329776571,1718663433995,-500.0,0.00021917,2]
[329776572,1718663434005,-500.0,0.00021917,2]
[329776573,1718663434015,-500.0,0.00021917,2]
[329776574,1718663434024,-589.17731701,0.00021917,2]
[329776575,1718663434034,-500.0,0.00021917,2]
[329776576,1718663434044,-500.0,0.00021917,2]
[329776577,1718663434054,-500.0,0.00021917,2]
[329776578,1718663434064,-500.0,0.00021917,2]
[329776579,1718663434073,-513.74659307,0.00021917,2]
[329776580,1718663434083,-500.0,0.00021917,2]
[329776581,1718663434092,-500.0,0.00021917,2]
[329776582,1718663434102,-500.0,0.00021917,2]
[329776583,1718663434112,-500.0,0.00021917,2]
[329776584,1718663434121,-500.0,0.00021917,2]
[329776585,1718663434131,-254.89238221,0.00021917,2]
[329776586,1718663434141,-500.0,0.00021917,2]
[329776587,1718663434152,-500.0,0.00021917,2]
[329776588,1718663434162,-500.0,0.00021917,2]
[329776589,1718663434171,-500.0,0.00021917,2]
[329776590,1718663434182,-500.0,0.00021917,2]
[329776591,1718663434192,-500.0,0.00021917,2]
[329776592,1718663434201,-500.0,0.00021917,2]
[329776593,1718663434211,-500.0,0.00021917,2]
[329776594,1718663434220,-213.79336616,0.00021917,2]
[329776595,1718663434230,-534.26458434,0.00021917,2]
[329776596,1718663434239,-500.0,0.00021917,2]
[329776597,1718663434249,-500.0,0.00021917,2]
[329776598,1718663434259,-521.46719689,0.00021917,2]
[329776599,1718663434269,-500.0,0.00021917,2]
[329776600,1718663434278,-500.0,0.00021917,2]
[329776601,1718663434288,-500.0,0.00021917,2]
[329776602,1718663434298,-500.0,0.00021917,2]
[329776603,1718663434307,-500.0,0.00021917,2]
[329776604,1718663434316,-500.0,0.00021917,2]
[329776605,1718663434326,-500.0,0.00021917,2]
[329776606,1718663434336,-543.24310341,0.00021917,2]
[329776607,1718663434345,-536.00276601,0.00021917,2]
[329776608,1718663434355,-500.0,0.00021917,2]
[329776609,1718663434364,-500.0,0.00021917,2]
[329776610,1718663434374,-500.0,0.00021917,2]
[329776611,1718663434383,-500.0,0.00021917,2]
[329776612,1718663434392,-500.0,0.00021917,2]
[329776613,1718663434402,-500.0,0.00021917,2]
[329776614,1718663434411,-500.0,0.00021917,2]
[329776615,1718663434421,-500.0,0.00021917,2]
[329776616,1718663434430,-500.0,0.00021917,2]
[329776617,1718663434439,-500.0,0.00021917,2]
[329776618,1718663434449,-500.0,0.00021917,2]
[329776619,1718663434458,-500.0,0.00021917,2]
[329776620,1718663434468,-500.0,0.00021917,2]
[329776621,1718663434478,-500.0,0.00021917,2]
[329776622,1718663434488,-500.0,0.00021917,2]
[329776623,1718663434498,-282.08093666,0.00021917,2]
[329776624,1718663434508,-500.0,0.00021917,2]
[329776625,1718663434517,-500.0,0.00021917,2]
[329776626,1718663434527,-500.0,0.00021917,2]
[329776627,1718663434536,-500.0,0.00021917,2]
[329776628,1718663434546,-500.0,0.00021917,2]
[329776629,1718663434556,-500.0,0.00021917,2]
[329776630,1718663434565,-500.0,0.00021917,2]
[329776631,1718663434575,-500.0,0.00021917,2]
[329776632,1718663434584,-500.0,0.00021917,2]
[329776633,1718663434594,-500.0,0.00021917,2]
[329776634,1718663434603,-500.0,0.00021917,2]
[329776635,1718663434613,-500.0,0.00021917,2]
[329776636,1718663434623,-500.0,0.00021917,2]
[329776637,1718663434632,-511.34347698,0.00021917,2]
[329776638,1718663434642,-500.0,0.00021917,2]
[329776639,1718663434653,-500.0,0.00021917,2]
[329776640,1718663434662,-200.0,0.00021917,2]
[329776641,1718663434671,-823.14,0.00021917,2]
[329776642,1718663434680,-500.0,0.00021917,2]
[329776643,1718663434689,-500.0,0.00021917,2]
[329776644,1718663434699,-500.0,0.00021917,2]
[329776645,1718663434708,-769.19,0.00021917,2]
[329776646,1718663434717,-545.89266127,0.00021917,2]
[329776647,1718663434727,-500.0,0.00021917,2]
[329776648,1718663434736,-500.0,0.00021917,2]
[329776649,1718663434746,-500.0,0.00021917,2]
[329776650,1718663434760,-500.0,0.00021917,2]
[329776651,1718663434770,-680.25,0.00021917,2]
[329776652,1718663434780,-710.02,0.00021917,2]
[329776653,1718663434790,-500.0,0.00021917,2]
[329776654,1718663434799,-500.0,0.00021917,2]
[329776655,1718663434809,-500.0,0.00021917,2]
[329776656,1718663434819,-946.59,0.00021917,2]
[329776657,1718663434828,-500.0,0.00021917,2]
[329776658,1718663434837,-1052.98,0.00021917,2]
[329776659,1718663434848,-413.08411886,0.00021917,2]
[329776660,1718663434857,-542.47952555,0.00021917,2]
[329776661,1718663434867,-500.0,0.00021917,2]
[329776662,1718663434876,-500.0,0.00021917,2]
[329776663,1718663434885,-500.0,0.00021917,2]
[329776664,1718663434895,-500.0,0.00021917,2]
[329776665,1718663434905,-500.0,0.00021917,2]
[329776666,1718663434914,-852.93,0.00021917,2]
[329776667,1718663434923,-500.0,0.00021917,2]
[329776668,1718663434932,-500.0,0.00021917,2]